bitfinex/quotes_ETHUSD_20240721
["timestamp","ask_amount","ask_price","bid_price","bid_amount"]
[1721527460478,0.49413133,3523.4,3523.3,0.05820191]
[1721527460972,0.49413133,3523.4,3523.0,3.248867]
[1721527461311,4.86615129,3523.6,3523.1,0.05821339]
[1721527461517,3.67301,3523.6,3523.1,0.67277743]
[1721527461715,2.83801,3523.6,3523.1,0.61456404]
[1721527461893,4.03115129,3523.6,3523.2,0.05822376]
[1721527464379,2.83801,3523.6,3523.2,0.05822376]
[1721527464579,4.03115129,3523.6,3523.2,0.05822376]
[1721527465724,4.86615129,3523.6,3523.2,0.05822376]
[1721527465892,1.19314129,3523.7,3523.3,2.3089]
[1721527466214,1.19314129,3523.7,3523.3,2.36711802]
[1721527467705,2.02814129,3523.7,3523.3,2.36711802]
[1721527467915,4.86606129,3523.7,3523.3,2.36711802]
[1721527468123,0.835,3523.5,3523.3,0.05821802]
[1721527468360,0.835,3523.5,3523.0,2.3092]
[1721527468661,0.835,3523.3,3523.0,2.3092]
[1721527468864,1.72855263,3523.3,3523.0,2.3092]
[1721527470663,0.89355263,3523.3,3523.0,2.3092]
[1721527471367,0.89355263,3523.3,3523.0,2.823984]
[1721527471835,0.89355263,3523.4,3523.0,2.823984]
[1721527472439,0.89355263,3523.3,3523.0,2.823984]
[1721527473041,0.89355263,3523.4,3523.0,2.823984]
[1721527473638,0.89355263,3523.3,3523.0,2.823984]
[1721527473886,0.89355263,3523.3,3523.1,0.5662624]
[1721527474552,0.89355263,3523.3,3523.2,2.3092]
[1721527474772,0.89355263,3523.4,3523.2,2.3092]
[1721527475081,0.89355263,3523.5,3523.2,2.3092]
[1721527475248,0.89355263,3523.5,3523.3,0.57138624]
[1721527475852,0.89355263,3523.5,3523.3,3.40960624]
[1721527476238,0.89355263,3523.5,3523.3,0.57138624]
[1721527476435,0.89355263,3523.4,3523.3,0.57138624]
[1721527476670,0.89355263,3523.5,3523.3,0.57138624]
[1721527477871,0.89355263,3523.4,3523.3,0.57138624]
[1721527478050,0.89355263,3523.4,3523.2,2.3092]
[1721527478252,0.89355263,3523.5,3523.2,2.3092]
[1721527478883,0.89355263,3523.4,3523.2,2.3092]
[1721527481601,5.163294,3523.7,3523.3,0.05817848]
[1721527481602,2.02814129,3523.5,3523.3,0.05817848]
[1721527481799,1.19314129,3523.4,3523.3,0.05817848]
[1721527481981,1.19314129,3523.4,3523.2,2.3092]
[1721527482192,0.89430567,3523.3,3523.2,2.3092]
[1721527491632,1.19314129,3523.4,3522.9,2.83855]
[1721527491911,0.8944129,3523.2,3522.9,2.83855]
[1721527493279,0.8944129,3523.2,3522.9,3.642844]
[1721527494784,0.8944129,3523.2,3523.0,2.3656]
[1721527495287,0.8944129,3523.3,3523.0,2.3656]
[1721527495622,0.8944129,3523.2,3523.0,2.3656]
[1721527496499,0.8944129,3523.2,3523.1,0.05624827]
[1721527496736,0.8944129,3523.2,3523.0,2.3656]
[1721527496934,0.8944129,3523.2,3523.1,0.05624827]
[1721527497088,0.8944129,3523.2,3523.0,3.2503164]
[1721527497427,0.8944129,3523.2,3523.1,0.05624827]
[1721527498089,0.8944129,3523.2,3523.0,3.2503164]
[1721527498302,0.4954129,3523.2,3523.1,0.05624827]
[1721527498494,0.4954129,3523.2,3523.0,2.3656]
[1721527498690,0.4954129,3523.2,3523.1,0.05624095]
[1721527499006,2.7638129,3523.2,3522.5,8.04544072]
[1721527499211,2.7638129,3523.2,3522.5,7.45]
[1721527499212,2.83873,3522.7,3522.5,7.45]
[1721527499533,3.67381,3522.6,3522.5,7.45]
[1721527499699,2.83889,3522.5,3521.9,7.45]
[1721527499898,3.67424,3522.1,3521.6,2.3148]
[1721527500832,3.67424,3522.1,3521.3,5.15464]
[1721527501041,3.67424,3522.1,3521.4,1.846162]
[1721527501192,1.19238877,3522.2,3521.4,0.85900907]
[1721527501193,0.835,3521.9,3521.4,0.85900907]
[1721527501629,0.835,3521.9,3521.4,3.69875907]
[1721527502393,0.835,3522.1,3521.5,2.83968]
[1721527502624,1.48924891,3522.5,3521.8,2.83937]
[1721527502625,1.19238877,3522.5,3521.8,2.83937]
[1721527502839,4.86628877,3522.5,3521.8,5.15417]
[1721527503006,0.835,3522.3,3521.8,5.15417]
[1721527503209,0.835,3522.3,3521.9,2.83936]
[1721527503422,0.835,3522.5,3521.9,2.83936]
[1721527503638,0.835,3522.5,3521.9,3.72726179]
[1721527506676,0.835,3522.3,3521.9,3.72726179]
[1721527509448,2.83883,3522.6,3521.9,3.72726179]
[1721527509449,0.835,3522.5,3521.9,3.72726179]
[1721527511546,0.835,3522.5,3522.0,0.05473794]
[1721527511904,0.89199287,3522.9,3522.0,2.89397794]
[1721527512193,0.835,3522.4,3522.0,2.89397794]
[1721527512345,0.835,3522.4,3522.0,3.78758991]
[1721527512685,0.835,3522.2,3522.0,3.78758991]
[1721527512857,0.835,3522.2,3522.0,0.05473794]
[1721527513183,0.835,3522.2,3521.8,5.15424]
[1721527513423,0.835,3522.2,3522.1,0.05473219]
[1721527513699,0.835,3522.2,3521.8,5.15424]
[1721527513896,0.835,3522.2,3522.1,0.05473219]
[1721527514495,0.835,3522.2,3521.8,5.15424]
[1721527514985,0.835,3522.2,3521.9,0.05474368]
[1721527521633,0.835,3522.4,3521.9,2.89410368]
[1721527521793,0.835,3522.4,3521.9,3.69894705]
[1721527521994,0.835,3522.4,3521.9,0.85958705]
[1721527522188,0.835,3522.2,3521.9,0.85958705]
[1721527522513,0.835,3522.0,3521.9,0.05474368]
[1721527522713,0.835,3522.0,3521.2,5.31873]
[1721527522714,2.83937,3521.9,3521.2,5.31873]
[1721527522922,0.835,3521.6,3521.2,5.31873]
[1721527523117,0.835,3521.6,3521.2,2.4788]
[1721527524435,0.835,3521.6,3521.2,5.31873]
[1721527524597,0.835,3521.8,3521.2,6.134621]
[1721527526002,2.83933,3522.0,3521.2,6.134621]
[1721527526624,2.83913,3522.2,3521.5,2.83968]
[1721527527012,2.83913,3522.2,3521.6,0.05469791]
[1721527531750,2.83913,3522.2,3521.6,0.10003719]
[1721527532758,2.83913,3522.2,3521.7,2.3532]
[1721527533135,2.83913,3522.2,3521.8,0.10003017]
[1721527542487,3.73112287,3522.2,3521.8,0.10003017]
[1721527544050,0.89199287,3522.1,3521.8,0.10003017]
[1721527544667,0.89199287,3522.0,3521.8,0.10003017]
[1721527546159,1.72899287,3522.0,3521.8,0.10003017]
[1721527554309,0.89199287,3522.0,3521.8,0.10003017]
[1721527554671,0.89199287,3522.2,3522.1,2.83921]
[1721527555007,0.89199287,3522.4,3522.2,2.4458]
[1721527555369,0.89199287,3522.4,3522.3,0.10000968]
[1721527555581,1.72899287,3522.5,3522.3,0.10000968]
[1721527555794,0.89199287,3522.4,3522.3,0.10000968]
[1721527557073,1.72899287,3522.5,3522.3,0.10000968]
[1721527557272,0.89199287,3522.4,3522.3,0.10000968]
[1721527560574,1.72899287,3522.5,3522.3,0.10000968]
[1721527560775,0.89199287,3522.4,3522.3,0.10000968]
[1721527563428,1.72899287,3522.5,3522.3,0.10000968]
[1721527563915,0.89199287,3522.4,3522.3,0.10000968]
[1721527565031,1.72899287,3522.5,3522.3,0.10000968]
[1721527565329,1.32999287,3522.5,3522.3,0.10000968]
[1721527565858,0.89199287,3522.5,3522.3,0.63851765]
[1721527565998,1.19238877,3522.7,3522.4,2.3787]
[1721527565999,0.89199287,3522.7,3522.4,2.3787]
[1721527566332,1.72899287,3522.7,3522.4,2.47863057]
[1721527568397,0.837,3522.5,3522.4,2.47863057]
[1721527574635,3.67589,3522.5,3522.4,0.09993057]
[1721527574848,4.13267829,3522.5,3522.1,2.3787]
[1721527575045,0.837,3522.2,3522.1,2.3787]
[1721527575218,0.837,3522.2,3521.7,2.83952]
[1721527575398,0.837,3522.2,3521.8,2.3787]
[1721527575605,0.837,3522.0,3521.8,2.3787]
[1721527575841,0.837,3522.0,3521.6,2.3787]
[1721527576040,0.837,3521.8,3521.6,2.3787]
[1721527576242,0.837,3521.8,3521.3,7.45]
[1721527576400,0.837,3521.5,3521.3,7.45]
[1721527576606,0.837,3521.5,3521.3,8.7984511]
[1721527577359,3.73137287,3521.9,3521.3,8.7984511]
[1721527577360,0.837,3521.7,3521.3,8.7984511]
[1721527578449,0.837,3521.7,3521.3,11.6382911]
[1721527578821,0.837,3521.9,3521.3,11.6382911]
[1721527579230,0.837,3521.9,3521.4,2.2786]
[1721527579430,4.56820287,3522.1,3521.5,0.72827821]
[1721527583151,4.56820287,3522.1,3521.6,2.2786]
[1721527584222,0.89199287,3522.0,3521.6,2.2786]
[1721527584554,1.72899287,3522.1,3521.6,2.2786]
[1721527585363,0.837,3522.1,3521.6,5.70286682]
[1721527585642,0.89199287,3522.2,3521.6,5.70286682]
[1721527585946,1.72899287,3522.3,3521.6,2.86325682]
[1721527586164,1.72899287,3522.3,3521.9,2.3632]
[1721527586535,1.72899287,3522.3,3522.0,0.09668246]
[1721527588981,0.837,3522.3,3522.0,0.09668246]
[1721527589858,1.72899287,3522.3,3522.0,0.09668246]
[1721527590056,0.837,3522.3,3522.0,0.09668246]
[1721527590661,1.72899287,3522.3,3522.0,0.09668246]
[1721527591247,0.837,3522.3,3522.0,0.09668246]
[1721527592060,1.72899287,3522.3,3522.0,0.09668246]
[1721527594866,0.837,3522.3,3522.0,0.09668246]
[1721527595268,1.72899287,3522.3,3522.0,0.09668246]
[1721527595645,0.837,3522.3,3522.0,0.09668246]
[1721527596187,1.72899287,3522.3,3522.0,0.09668246]
[1721527609367,1.72899287,3522.3,3522.0,0.09668246]
[1721527609702,0.89199287,3522.2,3522.0,0.09668246]
[1721527609902,1.72899287,3522.3,3522.0,0.09668246]
[1721527612420,0.89199287,3522.2,3522.0,0.09668246]
[1721527612780,1.72899287,3522.3,3522.0,0.09668246]
[1721527612981,0.89199287,3522.2,3522.0,0.09668246]
[1721527613187,0.837,3522.3,3522.0,0.09668246]
[1721527613188,0.89199287,3522.1,3522.0,0.09668246]
[1721527614221,1.72899287,3522.1,3522.0,0.09668246]
[1721527614397,0.837,3522.1,3522.0,0.09668246]
[1721527616702,2.02938877,3522.1,3522.0,0.09668246]
[1721527616906,0.837,3522.1,3522.0,0.09668246]
[1721527618032,2.02938877,3522.1,3522.0,0.09668246]
[1721527623363,4.86859877,3522.1,3522.0,0.09668246]
[1721527623527,4.59604842,3522.1,3522.0,0.09668246]
[1721527623757,6.08670386,3522.1,3521.5,2.3931]
[1721527623917,4.32986544,3522.1,3522.0,0.09670723]
[1721527624125,2.83929,3522.0,3521.5,2.3931]
[1721527624339,1.73155386,3521.8,3521.5,2.3931]
[1721527627848,0.89455386,3521.7,3521.5,2.3931]
[1721527628253,0.837,3521.8,3521.5,2.3931]
[1721527628254,1.73155386,3521.8,3521.5,2.3931]
[1721527628449,1.73155386,3521.8,3521.6,0.523294]
[1721527628655,0.837,3521.8,3521.6,0.523294]
[1721527629375,1.73155386,3521.8,3521.6,0.523294]
[1721527629741,0.89455386,3521.7,3521.6,0.523294]
[1721527631557,0.89455386,3521.7,3521.6,0.62003955]
[1721527631924,0.89455386,3521.7,3521.6,0.09674555]
[1721527632549,0.89455386,3521.7,3521.2,2.2632]
[1721527633047,0.89455386,3521.7,3521.3,0.09676664]
[1721527633234,0.89455386,3521.7,3521.2,2.2632]
[1721527633440,0.89455386,3521.7,3521.4,0.09675961]
[1721527633636,0.837,3521.6,3521.2,2.2632]
[1721527633849,0.837,3521.6,3521.5,0.09675258]
[1721527634025,4.57116386,3521.6,3521.2,2.2632]
[1721527634225,4.57116386,3521.6,3521.5,0.09675985]
[1721527634432,4.57116386,3521.6,3521.2,2.2632]
[1721527634644,4.57116386,3521.6,3521.5,0.09675985]
[1721527634930,4.57116386,3521.6,3521.2,2.2632]
[1721527635330,4.57116386,3521.6,3521.3,0.09677392]
[1721527635739,4.57116386,3521.6,3521.2,2.2632]
[1721527636070,4.57116386,3521.6,3521.3,0.09677392]
[1721527636251,4.57116386,3521.6,3521.2,2.2632]
[1721527636460,4.57116386,3521.6,3521.4,0.09676688]
[1721527636633,4.57116386,3521.6,3521.2,2.2632]
[1721527636835,4.57116386,3521.6,3521.5,0.09675985]
[1721527637076,1.19273848,3521.8,3521.2,2.2632]
[1721527637077,0.89455386,3521.7,3521.2,2.2632]
[1721527637229,4.57104386,3521.8,3521.5,0.09675985]
[1721527637435,4.57104386,3521.8,3521.2,5.10313]
[1721527637436,1.73155386,3521.8,3521.2,5.10313]
[1721527637650,1.73155386,3521.8,3521.6,0.09675282]
[1721527637981,1.73155386,3521.8,3521.2,5.10313]
[1721527638179,1.73155386,3521.8,3521.7,0.0967458]
[1721527638385,1.73155386,3521.8,3521.2,5.10313]
[1721527638582,1.73155386,3521.8,3521.3,0.794323]
[1721527638817,1.73155386,3521.8,3521.3,0.89109692]
[1721527639446,0.89455386,3521.8,3521.3,0.89109692]
[1721527639650,0.89455386,3521.8,3521.4,2.4613]
[1721527640077,0.89455386,3521.8,3521.5,0.09675985]
[1721527640386,0.89455386,3521.8,3521.4,2.4613]
[1721527640693,0.89455386,3521.8,3521.5,0.09675985]
[1721527640863,0.89455386,3521.8,3521.4,2.4613]
[1721527641066,0.89455386,3521.8,3521.6,0.09675282]
[1721527641471,0.89455386,3521.8,3521.4,2.4613]
[1721527641669,0.89455386,3521.8,3521.7,0.0967458]
[1721527642015,0.89455386,3521.8,3521.4,2.4613]
[1721527642456,0.89455386,3521.8,3521.5,0.09673655]
[1721527642859,0.89455386,3521.8,3521.4,2.4613]
[1721527643057,2.83938,3521.9,3521.4,2.4613]
[1721527643058,0.89455386,3521.9,3521.6,0.09672952]
[1721527643289,0.89455386,3521.9,3521.4,2.991423]
[1721527643595,0.89455386,3521.9,3521.8,2.4613]
[1721527643796,0.89455386,3522.0,3521.8,2.4613]
[1721527644014,0.89455386,3522.1,3521.8,2.55801547]
[1721527644778,0.89455386,3522.1,3521.8,3.09776902]
[1721527645021,0.89455386,3522.2,3521.8,3.09776902]
[1721527646084,0.89455386,3522.2,3521.9,2.83931]
[1721527646401,0.89455386,3522.3,3522.0,2.341]
[1721527646601,0.89455386,3522.4,3522.0,2.341]
[1721527646804,0.89455386,3522.4,3522.1,0.09669438]
[1721527647116,1.19273848,3522.5,3522.1,0.09669438]
[1721527647117,0.89455386,3522.3,3522.1,0.09669438]
[1721527647280,0.89455386,3522.4,3522.1,0.67837017]
[1721527647481,0.89455386,3522.4,3522.1,0.09669438]
[1721527648279,0.89455386,3522.4,3522.1,2.93589438]
[1721527649501,0.89455386,3522.5,3522.2,2.2953]
[1721527649828,0.89455386,3522.6,3522.2,2.2953]
[1721527650041,0.89455386,3522.6,3522.3,0.09668033]
[1721527650534,1.73155386,3522.7,3522.3,0.09668033]
[1721527651035,0.89455386,3522.6,3522.3,0.09668033]
[1721527651387,0.89455386,3522.7,3522.4,2.83897]
[1721527651588,0.89455386,3522.7,3522.6,2.2953]
[1721527651895,0.89455386,3522.8,3522.6,2.39195925]
[1721527653292,0.49555386,3522.9,3522.6,2.39195925]
[1721527654025,2.02973848,3523.1,3522.6,2.39195925]
[1721527654436,0.837,3523.1,3522.6,2.39195925]
[1721527655017,0.438,3523.1,3522.6,2.39195925]
[1721527657005,1.19273848,3523.3,3522.8,2.83858]
[1721527657208,0.837,3523.4,3522.8,2.2953]
[1721527657403,0.837,3523.4,3522.9,0.09645186]
[1721527657725,0.837,3523.4,3522.8,2.2953]
[1721527658337,0.837,3523.4,3522.9,2.83856]
[1721527658630,0.837,3523.4,3522.9,2.93501186]
[1721527660406,0.837,3523.4,3522.9,3.74191505]
[1721527660605,6.29568848,3523.8,3522.9,3.74191505]
[1721527660606,1.19273848,3523.8,3523.0,2.35206698]
[1721527660805,0.837,3523.7,3523.0,2.2953]
[1721527661132,0.837,3523.7,3523.1,2.39173781]
[1721527662339,0.837,3523.7,3523.4,2.2953]
[1721527662693,0.837,3523.7,3523.5,0.09633842]
[1721527665506,3.67493,3523.7,3523.5,0.09633842]
[1721527665706,3.67493,3523.7,3523.1,2.2953]
[1721527665907,0.837,3523.4,3523.2,0.09635949]
[1721527668499,0.837,3523.6,3523.2,0.09635949]
[1721527668700,0.837,3523.8,3523.2,0.09635949]
[1721527668957,0.837,3523.8,3523.2,2.93467949]
[1721527669177,3.72846646,3524.2,3523.5,2.83807]
[1721527669370,2.83745,3524.3,3523.7,2.8379]
[1721527669554,0.837,3524.2,3523.7,2.8379]
[1721527669753,2.83745,3524.3,3523.8,0.09620678]
[1721527669928,0.837,3524.1,3523.8,0.09620678]
[1721527670341,0.837,3524.1,3523.9,2.2656]
[1721527670553,0.837,3524.1,3524.0,0.09619274]
[1721527670770,3.67445,3524.3,3524.0,0.09619274]
[1721527675065,2.83721,3524.6,3524.0,0.09619274]
[1721527675240,0.837,3524.3,3524.0,0.09619274]
[1721527679372,0.837,3524.3,3524.0,0.61615401]
[1721527679668,0.837,3524.3,3524.1,2.2656]
[1721527679841,0.837,3524.5,3524.1,2.2656]
[1721527680048,0.837,3524.5,3524.2,0.09595181]
[1721527680657,0.837,3524.7,3524.3,2.2656]
[1721527681030,0.837,3524.7,3524.4,0.09593777]
[1721527682374,3.67412,3524.7,3524.4,0.09593777]
[1721527684194,2.83712,3524.7,3524.4,0.09593777]
[1721527684396,3.67412,3524.7,3524.4,0.09593777]
[1721527700443,3.67428,3524.5,3524.4,0.09593777]
[1721527700657,8.51328,3523.9,3523.8,7.45]
[1721527700805,7.40393285,3523.9,3523.8,7.45]
[1721527701005,7.70107047,3523.9,3523.8,7.45]
[1721527701235,7.71495486,3523.9,3523.8,7.45]
[1721527701400,9.20098075,3523.9,3523.8,7.45]
[1721527703346,9.20120521,3523.9,3523.8,7.45]
[1721527704115,2.83812,3523.5,3523.2,7.45]
[1721527704323,0.837,3523.4,3522.9,2.4301]
[1721527704524,0.837,3523.2,3522.9,2.4301]
[1721527704956,0.89167373,3523.6,3522.9,3.701971]
[1721527705123,0.837,3523.5,3523.0,2.83845]
[1721527706248,0.837,3523.1,3522.9,2.4301]
[1721527706457,3.67541,3523.1,3522.7,7.45]
[1721527706673,0.837,3522.8,3522.7,7.45]
[1721527708139,0.837,3523.0,3522.7,7.52713147]
[1721527708337,1.48631577,3523.5,3522.9,2.83853]
[1721527708338,0.89167373,3523.5,3522.9,2.83853]
[1721527708541,3.72968373,3523.6,3523.0,0.07711039]
[1721527708768,0.837,3523.4,3523.0,0.07711039]
[1721527708967,0.837,3523.4,3522.7,11.57083015]
[1721527709155,0.837,3523.4,3522.8,0.0771736]
[1721527710074,0.837,3523.2,3522.8,0.0771736]
[1721527710443,0.837,3523.2,3522.7,11.57083015]
[1721527710638,0.837,3523.2,3522.9,0.07714633]
[1721527710843,0.837,3523.2,3522.8,0.07715336]
[1721527711068,0.837,3523.2,3523.0,0.07713931]
[1721527711280,0.837,3523.2,3522.9,0.07714633]
[1721527711449,0.837,3523.2,3523.1,0.07713229]
[1721527711653,0.837,3523.2,3523.0,0.07713931]
[1721527711855,0.837,3523.2,3523.1,0.07713229]
[1721527712262,0.837,3523.2,3522.7,10.28871]
[1721527712468,0.837,3523.2,3523.1,0.07713229]
[1721527712654,0.837,3523.2,3522.7,10.28871]
[1721527712912,2.83809,3523.5,3523.1,0.07713229]
[1721527713206,0.837,3523.3,3523.2,0.07712526]
[1721527713577,0.837,3523.3,3522.7,10.28871]
[1721527713774,0.837,3523.1,3522.8,0.07715336]
[1721527714028,0.837,3523.1,3522.7,10.28871]
[1721527714164,0.837,3523.1,3522.9,0.07717383]
[1721527714505,0.837,3523.1,3522.7,10.28871]
[1721527714671,0.837,3523.1,3523.0,0.07716681]
[1721527714874,0.837,3523.1,3522.7,10.28871]
[1721527715388,0.837,3523.1,3522.8,0.07718086]
[1721527715566,0.837,3523.1,3522.7,10.28871]
[1721527715767,0.837,3523.1,3522.8,0.07718086]
[1721527715966,0.837,3523.1,3522.7,2.83871]
[1721527716314,0.837,3523.1,3522.8,0.07718086]
[1721527716694,0.837,3523.1,3522.7,2.83871]
[1721527716893,0.837,3523.1,3522.9,0.07717383]
[1721527717229,0.837,3523.1,3523.0,0.07716681]
[1721527717725,3.67543,3523.1,3522.6,2.4551]
[1721527717870,2.83843,3523.1,3523.0,0.07716681]
[1721527718203,3.67543,3523.1,3523.0,0.07716681]
[1721527718366,3.67543,3523.1,3522.6,2.4551]
[1721527718567,3.67543,3523.1,3522.7,0.07718788]
[1721527718568,0.837,3522.9,3522.7,0.07718788]
[1721527719567,0.837,3522.9,3522.3,24.98412]
[1721527719888,0.837,3522.9,3522.4,0.07723065]
[1721527721378,0.837,3523.1,3522.4,2.91619065]
[1721527725527,0.837,3523.1,3522.5,2.83888]
[1721527725825,0.837,3523.1,3522.6,0.07722383]
[1721527726844,0.837,3523.4,3523.0,2.83842]
[1721527727130,0.837,3523.4,3522.8,2.83858]
[1721527727328,0.837,3523.4,3523.1,0.07719447]
[1721527727628,0.837,3523.4,3523.2,0.07718745]
[1721527728017,0.837,3523.4,3522.9,2.83854]
[1721527728216,0.837,3523.2,3523.0,0.0772015]
[1721527731141,0.438,3523.2,3523.0,0.0772015]
[1721527732241,0.039,3523.2,3523.0,0.0772015]
[1721527733529,2.47808,3523.5,3523.0,0.0772015]
[1721527733732,0.837,3523.3,3523.0,0.0772015]
[1721527740341,2.83817,3523.4,3523.0,0.0772015]
[1721527740342,0.837,3523.1,3523.0,0.0772015]
[1721527740543,0.837,3523.1,3522.7,2.75641038]
[1721527740738,0.837,3523.1,3523.0,0.0771885]
[1721527740952,0.837,3523.1,3522.7,2.75641038]
[1721527741153,0.837,3523.1,3523.0,0.0771885]
[1721527741358,0.837,3523.1,3522.7,2.4648]
[1721527741547,0.837,3523.1,3523.0,0.0771885]
[1721527742060,0.837,3523.1,3522.7,2.4648]
[1721527742355,0.837,3523.1,3523.0,0.0771885]
[1721527742552,0.837,3523.1,3522.7,2.4648]
[1721527742855,0.837,3523.1,3522.7,4.024057]
[1721527743046,0.837,3523.1,3522.8,0.07720254]
[1721527743449,0.837,3523.1,3522.7,4.024057]
[1721527743621,0.837,3523.1,3522.9,0.07719552]
[1721527743830,0.837,3523.1,3522.7,4.024057]
[1721527744027,0.837,3523.1,3523.0,0.0771885]
[1721527744221,0.837,3523.1,3522.7,4.024057]
[1721527744460,0.837,3523.1,3522.8,0.07720254]
[1721527744827,0.837,3523.1,3522.7,4.024057]
[1721527745021,0.837,3523.1,3522.8,0.07720254]
[1721527745352,0.837,3522.9,3522.4,2.4648]
[1721527745539,0.837,3522.9,3522.5,2.499381]
[1721527746428,1.72867373,3522.9,3522.5,2.499381]
[1721527748359,0.89167373,3522.8,3522.5,2.499381]
[1721527750055,0.89167373,3522.8,3522.4,2.4648]
[1721527750661,3.73025373,3522.9,3522.4,2.4648]
[1721527751602,0.89167373,3522.9,3522.6,2.3026]
[1721527751744,1.18889831,3523.1,3522.6,2.3026]
[1721527751745,0.89167373,3523.0,3522.6,5.14139]
[1721527752091,0.89167373,3523.0,3522.7,0.96672578]
[1721527754548,0.89167373,3522.9,3522.7,0.96672578]
[1721527754747,0.89167373,3523.0,3522.7,0.96672578]
[1721527754948,0.89167373,3522.9,3522.7,0.07726307]
[1721527755183,0.837,3522.8,3522.7,0.07726307]
[1721527755881,0.837,3522.8,3522.3,2.3026]
[1721527756089,0.89445217,3522.7,3522.3,2.3026]
[1721527756285,0.89445217,3522.7,3522.4,0.51417]
[1721527759995,0.89445217,3522.7,3522.0,2.83929]
[1721527759996,0.89445217,3522.6,3522.1,2.3026]
[1721527760196,0.89445217,3522.5,3522.1,2.3026]
[1721527760966,0.89445217,3522.6,3522.2,2.83912]
[1721527761167,0.89445217,3522.7,3522.2,2.83912]
[1721527761380,0.89445217,3522.7,3522.3,0.798101]
[1721527762188,0.89445217,3522.6,3522.3,0.798101]
[1721527762390,0.89445217,3522.6,3522.1,2.3026]
[1721527762589,0.89445217,3522.5,3522.1,2.3026]
[1721527763499,0.89445217,3522.6,3522.1,2.3026]
[1721527764597,0.89445217,3522.5,3522.1,2.3026]
[1721527764969,0.837,3522.4,3522.1,2.3026]
[1721527765174,1.73145217,3522.4,3522.1,2.3026]
[1721527766490,1.73145217,3522.4,3522.2,0.07736904]
[1721527766706,2.83905,3522.3,3522.2,0.07736904]
[1721527766928,3.73350217,3522.3,3522.2,0.07736904]
[1721527767078,3.73350217,3522.3,3521.9,7.45]
[1721527767272,3.73350217,3522.3,3522.2,0.0774052]
[1721527767472,3.73350217,3522.3,3521.9,7.45]
[1721527767705,0.837,3522.2,3521.9,7.45]
[1721527772482,0.837,3522.2,3521.8,2.3147]
[1721527772821,0.837,3522.2,3521.8,2.830127]
[1721527773207,0.837,3522.4,3521.8,5.669577]
[1721527773382,3.67597,3522.4,3521.8,5.669577]
[1721527773722,0.89445217,3522.5,3521.9,3.28148245]
[1721527773884,0.89445217,3522.5,3522.2,2.3877]
[1721527774086,4.02762831,3522.7,3522.3,0.52269]
[1721527774087,2.83873,3522.7,3522.3,0.52269]
[1721527774490,2.83873,3522.7,3522.2,2.3877]
[1721527774491,4.57002217,3522.9,3522.2,2.3877]
[1721527774699,3.67557,3522.9,3522.2,2.3877]
[1721527775218,4.57002217,3522.9,3522.2,2.3877]
[1721527775376,4.57002217,3522.9,3522.3,0.07726329]
[1721527775784,2.83865,3522.8,3522.3,0.07726329]
[1721527776021,0.837,3522.7,3522.3,0.07726329]
[1721527776201,0.837,3522.7,3522.3,0.60767762]
[1721527776803,0.837,3522.5,3522.3,0.07726329]
[1721527777002,0.837,3522.5,3522.2,2.3877]
[1721527777303,0.837,3522.5,3522.3,0.07706645]
[1721527777605,0.837,3522.5,3522.2,2.3877]
[1721527777785,0.837,3522.5,3522.3,0.07708814]
[1721527778521,6.08371217,3522.8,3522.3,0.07708814]
[1721527778522,0.837,3522.7,3522.3,0.07708814]
[1721527779199,3.67573,3522.7,3522.3,0.07708814]
[1721527781411,4.57018217,3522.7,3522.3,0.07708814]
[1721527781592,3.67573,3522.7,3522.3,0.07708814]
[1721527781794,4.57018217,3522.7,3522.3,0.07708814]
[1721527782427,3.67573,3522.7,3522.3,0.07708814]
[1721527783213,4.57018217,3522.7,3522.3,0.07708814]
[1721527783414,0.837,3522.5,3522.3,0.07708814]
[1721527786429,0.837,3522.5,3522.3,0.60749595]
[1721527787000,0.837,3522.5,3522.3,0.07708814]
[1721527789740,0.837,3522.5,3522.0,2.2739]
[1721527790056,0.837,3522.3,3522.0,2.2739]
[1721527790215,0.837,3522.3,3522.1,0.07681666]
[1721527793117,1.73145217,3522.5,3522.1,0.07681666]
[1721527793461,1.73145217,3522.5,3522.2,0.51900867]
[1721527793665,1.73145217,3522.5,3522.3,0.0767054]
[1721527794150,0.89445217,3522.5,3522.3,0.0767054]
[1721527794354,1.73145217,3522.5,3522.3,0.0767054]
[1721527795723,1.73145217,3522.5,3522.0,2.2739]
[1721527796031,1.73145217,3522.5,3522.1,0.5628697]
[1721527796214,1.73145217,3522.5,3522.2,0.07662843]
[1721527799159,4.57035217,3522.5,3522.2,0.07662843]
[1721527799458,0.89445217,3522.4,3522.2,0.07662843]
[1721527799758,0.89445217,3522.4,3522.0,2.2739]
[1721527799954,0.89445217,3522.4,3522.3,0.07653874]
[1721527800161,0.89445217,3522.4,3522.0,2.2739]
[1721527800365,3.73342217,3522.4,3522.3,0.0764924]
[1721527800538,4.56978052,3522.4,3521.8,2.2739]
[1721527800722,0.837,3522.2,3521.8,3.069216]
[1721527801869,3.67613,3522.2,3521.8,3.069216]
[1721527802162,3.67613,3522.2,3521.8,2.2739]
[1721527803258,0.837,3522.2,3521.8,2.2739]
[1721527803456,0.89381052,3522.3,3521.8,2.2739]
[1721527803832,0.89381052,3522.5,3522.0,2.2739]
[1721527806155,0.89381052,3522.5,3522.0,5.11315]
[1721527806365,0.89381052,3522.5,3522.1,3.159951]
[1721527809582,0.89381052,3522.5,3522.4,2.83897]
[1721527809868,4.40755313,3523.5,3522.7,2.83873]
[1721527809869,0.89381052,3523.0,3522.7,2.83873]
[1721527810027,0.89381052,3522.9,3522.7,2.83873]
[1721527810433,0.89381052,3523.0,3522.7,2.83873]
[1721527810760,0.89381052,3522.9,3522.7,2.83873]
[1721527811066,1.73081052,3522.9,3522.7,2.83873]
[1721527811270,1.73081052,3522.9,3522.5,2.3647]
[1721527811436,1.73081052,3522.9,3522.6,0.07648868]
[1721527811437,0.89381052,3522.8,3522.6,0.07648868]
[1721527811636,0.837,3522.7,3522.6,0.07648868]